bitfinex/quotes_ETHUSD_20241223
["timestamp","ask_amount","ask_price","bid_price","bid_amount"]
[1734952418539,2.50031097,3341.0,3340.1,0.6628]
[1734952418692,2.50031097,3341.0,3340.3,0.6628]
[1734952419227,2.50031097,3341.0,3340.5,0.6628]
[1734952419446,2.99275,3341.4,3340.5,0.6628]
[1734952419824,3.28611097,3341.6,3340.7,0.6628]
[1734952420133,2.99287,3341.3,3340.7,0.6628]
[1734952420341,2.99287,3341.3,3340.8,0.0698887]
[1734952420647,2.99287,3341.3,3340.7,0.6628]
[1734952420842,0.7858,3341.6,3340.7,0.6628]
[1734952420995,0.7858,3341.6,3340.8,0.0698887]
[1734952421196,2.99279,3341.4,3340.8,0.0698887]
[1734952424441,2.50031097,3341.7,3340.9,0.6628]
[1734952424645,2.50031097,3341.7,3341.1,0.6628]
[1734952424937,2.50031097,3341.7,3341.6,0.55]
[1734952425140,2.50031097,3341.7,3341.6,4.62665]
[1734952425344,2.50031097,3342.1,3341.9,0.6628]
[1734952425852,2.50031097,3342.1,3342.0,0.06856855]
[1734952426364,3.52e-06,3342.6,3342.5,16.18457]
[1734952426513,3.79441,3344.8,3342.7,3.6628]
[1734952426514,2.49639911,3343.4,3342.7,3.6628]
[1734952426716,2.49639911,3343.4,3342.6,2.99168]
[1734952426717,2.49639911,3343.4,3343.2,0.6628]
[1734952427226,2.49639911,3343.4,3343.3,0.06761364]
[1734952427912,2.99061,3343.8,3343.3,0.06761364]
[1734952428455,2.99044,3344.0,3343.3,0.06761364]
[1734952428644,2.99053,3343.9,3343.3,0.06761364]
[1734952428956,2.99096,3343.4,3343.3,0.06761364]
[1734952429165,2.99127,3343.1,3342.9,0.6628]
[1734952429372,2.99096,3343.4,3343.3,0.06761364]
[1734952429716,2.99137,3343.0,3342.5,1.89951993]
[1734952429919,2.99139,3343.0,3342.5,1.89951993]
[1734952430678,2.99139,3343.0,3342.5,0.6628]
[1734952432142,0.8274,3343.5,3342.5,0.6628]
[1734952432966,2.99096,3343.4,3342.5,0.6628]
[1734952433292,0.68092,3343.4,3342.5,0.6628]
[1734952433496,0.8274,3343.5,3342.5,0.6628]
[1734952433497,3.81833,3343.5,3342.5,0.6628]
[1734952433958,2.9914,3343.0,3342.5,0.6628]
[1734952435971,0.8274,3343.5,3342.5,0.6628]
[1734952436183,2.99144,3342.9,3342.5,0.6628]
[1734952438401,2.99169,3342.6,3342.2,0.6628]
[1734952438578,2.9915,3342.8,3342.2,0.6628]
[1734952438883,0.7886,3342.9,3342.2,0.6628]
[1734952438884,2.99166,3342.7,3342.2,0.6628]
[1734952439339,2.99143,3342.9,3342.2,0.6628]
[1734952439544,2.9915,3342.8,3342.2,0.6628]
[1734952440987,2.9915,3342.8,3342.3,0.06711994]
[1734952441192,2.9915,3342.8,3342.2,0.6628]
[1734952441372,2.99117,3343.2,3342.4,0.06711994]
[1734952441709,3.0,3343.5,3342.2,0.6628]
[1734952441710,2.99124,3343.1,3342.2,0.6628]
[1734952442002,2.99124,3343.1,3342.6,0.6628]
[1734952442355,2.99098,3343.4,3342.7,0.06711994]
[1734952442793,2.99033,3344.2,3342.8,1.2128]
[1734952443104,2.99053,3343.9,3343.1,0.6628]
[1734952443322,2.99016,3344.3,3343.1,0.6628]
[1734952443612,2.9907,3343.7,3343.2,0.06711994]
[1734952445708,3.0,3344.2,3343.2,0.06711994]
[1734952445906,2.99096,3343.5,3343.2,0.06711994]
[1734952446107,2.99105,3343.3,3343.2,0.06711994]
[1734952446513,2.99105,3343.3,3342.8,0.6628]
[1734952446689,3.7628,3344.1,3343.2,0.0662183]
[1734952446690,2.99088,3343.5,3343.2,0.0662183]
[1734952447095,2.99088,3343.5,3342.8,0.6628]
[1734952447404,2.99088,3343.5,3342.9,0.0662183]
[1734952447558,2.99088,3343.5,3342.8,0.6628]
[1734952447758,2.99088,3343.5,3343.0,0.0662183]
[1734952447974,2.99088,3343.5,3342.8,0.6628]
[1734952448176,2.99043,3344.0,3343.1,0.0662183]
[1734952448413,0.675323,3344.0,3342.8,0.6628]
[1734952448710,2.99035,3344.1,3343.3,0.6628]
[1734952449009,2.99035,3344.1,3343.4,0.06602089]
[1734952450012,2.99045,3344.0,3343.4,0.06602089]
[1734952450317,2.99055,3343.9,3343.3,0.6628]
[1734952451013,2.99055,3343.9,3343.4,0.06602089]
[1734952453551,0.8025,3344.1,3343.4,0.06602089]
[1734952453720,1.18275,3344.1,3343.4,0.06602089]
[1734952454012,1.18275,3344.1,3343.5,0.06602089]
[1734952454013,2.99062,3343.8,3343.5,0.06602089]
[1734952454163,2.99062,3343.8,3342.9,1.2128]
[1734952454359,2.99062,3343.8,3343.6,0.06602089]
[1734952454564,2.99062,3343.8,3342.9,1.2128]
[1734952454796,2.99062,3343.8,3343.7,0.06602089]
[1734952455021,2.99062,3343.8,3342.9,1.2128]
[1734952455178,2.99045,3344.0,3343.7,0.06602089]
[1734952455358,0.8124,3344.5,3343.5,0.6628]
[1734952455564,2.99016,3344.4,3343.5,0.6628]
[1734952455801,2.99016,3344.4,3343.6,0.06602089]
[1734952456629,2.99018,3344.3,3343.6,0.06602089]
[1734952457184,0.8124,3344.5,3343.6,0.06602089]
[1734952457420,2.99056,3343.9,3343.6,0.06602089]
[1734952459499,2.99069,3343.7,3343.6,0.06602089]
[1734952459852,2.99069,3343.7,3343.2,0.6628]
[1734952460026,0.7576,3343.9,3343.6,0.06546828]
[1734952460227,2.99054,3343.9,3343.2,0.6628]
[1734952460391,2.99054,3343.9,3343.7,0.06546828]
[1734952460591,2.99054,3343.9,3343.2,0.6628]
[1734952460829,2.99054,3343.9,3343.8,0.06546828]
[1734952461027,0.7511,3344.2,3343.2,0.6628]
[1734952461198,3.0,3344.1,3343.2,0.6628]
[1734952461394,2.99076,3343.7,3343.2,0.6628]
[1734952461728,2.99052,3343.9,3343.2,0.6628]
[1734952461897,3.66464,3344.0,3343.2,0.6628]
[1734952462733,2.99074,3343.7,3343.2,0.6628]
[1734952463087,2.99082,3343.6,3343.2,0.6628]
[1734952464006,2.99063,3343.8,3343.2,0.6628]
[1734952464206,2.99063,3343.8,3343.2,0.84408791]
[1734952464400,0.7511,3344.2,3343.2,0.84408791]
[1734952464609,2.99073,3343.7,3343.2,0.6628]
[1734952465724,2.99078,3343.6,3343.2,0.6628]
[1734952466649,2.99071,3343.7,3343.2,0.6628]
[1734952468451,2.99013,3344.4,3343.5,0.55]
[1734952468682,2.99013,3344.4,3343.6,0.86898332]
[1734952468965,0.7535,3345.2,3343.9,0.55]
[1734952469122,0.7535,3345.2,3344.0,0.6628]
[1734952469320,2.98983,3344.7,3344.0,0.6628]
[1734952469517,2.99028,3344.2,3344.0,0.6628]
[1734952471168,2.99028,3344.2,3344.1,0.06537622]
[1734952471380,2.99009,3344.4,3344.1,0.06537622]
[1734952471666,2.99009,3344.4,3344.0,0.6628]
[1734952471985,2.9902,3344.3,3344.0,0.6628]
[1734952472399,2.99025,3344.2,3344.1,0.06537622]
[1734952473869,3.289275,3344.2,3344.1,0.06537622]
[1734952474372,2.99051,3344.0,3343.5,9.6428]
[1734952475464,2.99051,3344.0,3343.5,0.6628]
[1734952476275,0.7564,3344.6,3343.5,0.6628]
[1734952476438,3.74169,3344.3,3343.1,0.6628]
[1734952476640,2.99114,3343.2,3343.1,0.6628]
[1734952476995,2.99114,3343.2,3343.1,1.89951993]
[1734952477970,2.99088,3343.5,3343.1,0.6628]
[1734952479642,2.99096,3343.4,3343.1,0.6628]
[1734952484597,3.0,3343.9,3343.1,0.6628]
[1734952484802,2.99107,3343.3,3343.1,0.6628]
[1734952485848,2.99069,3343.7,3343.1,0.6628]
[1734952486048,0.37515,3343.8,3343.2,0.05720343]
[1734952486382,0.37515,3343.8,3342.6,1.23671993]
[1734952486383,2.99123,3343.1,3342.8,0.6628]
[1734952486900,2.99115,3343.2,3342.9,0.05723632]
[1734952487250,2.99098,3343.4,3342.9,0.05723632]
[1734952487970,2.99107,3343.3,3342.9,0.05723632]
[1734952489500,0.8016,3343.5,3342.9,0.05723632]
[1734952489703,2.99114,3343.2,3342.9,0.05723632]
[1734952490797,1.51835,3343.5,3342.9,0.05723632]
[1734952491012,2.99099,3343.4,3342.9,0.05723632]
[1734952491543,2.99111,3343.3,3342.9,0.05723632]
[1734952492581,0.8016,3343.5,3342.9,0.05723632]
[1734952492783,2.99111,3343.3,3342.9,0.05723632]
[1734952493599,2.99118,3343.2,3342.9,0.05723632]
[1734952496730,2.99101,3343.4,3342.9,0.05723632]
[1734952497490,2.99083,3343.6,3342.9,0.05723632]
[1734952498613,2.99083,3343.6,3343.0,0.19567563]
[1734952498812,3.76259,3343.8,3343.0,0.25131208]
[1734952499028,2.99069,3343.8,3343.1,0.6628]
[1734952499336,3.10753017,3344.4,3343.1,0.6628]
[1734952499337,2.9905,3344.0,3343.1,0.6628]
[1734952499502,2.9905,3344.0,3343.2,0.05555092]
[1734952499703,3.0,3344.1,3343.2,0.05555092]
[1734952499942,2.99052,3343.9,3343.2,0.05555092]
[1734952500743,6.75471,3344.3,3343.2,0.27361652]
[1734952500744,0.7645,3344.3,3343.2,0.27361652]
[1734952501042,2.99095,3343.5,3343.2,0.05555092]
[1734952501248,0.7661,3343.9,3343.2,0.05555092]
[1734952501427,2.9906,3343.8,3343.2,0.05555092]
[1734952501752,2.99094,3343.5,3343.2,0.05555092]
[1734952501910,2.9906,3343.8,3343.2,0.05555092]
[1734952501911,0.7661,3343.9,3343.2,0.05555092]
[1734952502251,2.99132,3343.0,3342.9,1.23671993]
[1734952502560,2.99123,3343.1,3342.7,1.23671993]
[1734952503237,0.7661,3343.3,3342.7,1.23671993]
[1734952503441,2.9915,3342.8,3342.2,2.48661158]
[1734952503652,2.99188,3342.4,3342.2,2.48661158]
[1734952503824,2.99195,3342.3,3342.2,1.89951993]
[1734952504753,2.99195,3342.3,3342.2,1.23671993]
[1734952504950,2.99195,3342.3,3341.9,0.6628]
[1734952505111,0.7782,3342.8,3342.0,0.18995199]
[1734952505112,2.9918,3342.5,3342.0,0.18995199]
[1734952506260,0.7782,3342.8,3342.0,0.18995199]
[1734952506261,0.7523,3343.1,3342.0,0.55]
[1734952506581,2.99124,3343.1,3342.2,0.6628]
[1734952508253,2.99104,3343.4,3342.2,0.6628]
[1734952508449,0.7523,3343.5,3342.2,0.6628]
[1734952508450,3.0,3343.3,3342.2,0.6628]
[1734952508766,2.99105,3343.3,3342.2,0.6628]
[1734952509062,2.9912,3343.2,3342.4,0.6628]
[1734952509260,0.7523,3343.5,3342.4,0.6628]
[1734952509467,3.0,3343.6,3342.6,0.6628]
[1734952509621,2.99079,3343.6,3342.8,0.6628]
[1734952510468,3.86173017,3344.1,3342.8,0.6628]
[1734952510631,3.10753017,3344.1,3343.0,0.6628]
[1734952510963,3.10753017,3344.3,3343.2,0.6628]
[1734952511139,2.99025,3344.2,3343.2,0.6628]
[1734952511340,2.9905,3344.0,3343.2,0.6628]
[1734952511649,2.99043,3344.0,3342.9,0.6628]
[1734952511849,2.99117,3343.2,3342.9,1.89951993]
[1734952512328,2.99099,3343.4,3342.9,2.5223239]
[1734952512727,2.99099,3343.4,3342.9,1.28560397]
[1734952512967,2.99099,3343.4,3342.9,0.6628]
[1734952513180,0.7598,3343.8,3342.9,0.6628]
[1734952513327,2.99144,3342.9,3342.6,0.6628]
[1734952513736,2.99124,3343.1,3342.7,0.05391306]
[1734952514277,0.7598,3343.8,3342.7,0.05391306]
[1734952514456,2.9914,3343.0,3342.7,0.05391306]
[1734952517525,2.99103,3343.4,3342.7,0.05391306]
[1734952517701,2.9915,3342.8,3342.7,0.05391306]
[1734952518002,5.9915,3342.8,3342.0,1.23671993]
[1734952518204,2.99187,3342.4,3342.0,1.23671993]
[1734952518366,3.0,3342.8,3342.0,1.23671993]
[1734952518565,3.675532,3342.8,3342.0,1.23671993]
[1734952518761,3.675532,3342.8,3341.2,12.69015981]
[1734952518762,2.99213,3342.1,3341.5,1.89951993]
[1734952518961,2.99239,3341.9,3341.5,1.89951993]
[1734952519168,2.99241,3341.8,3341.5,1.89951993]
[1734952519682,2.9925,3341.7,3341.5,1.89951993]
[1734952519865,0.764,3342.3,3341.5,0.6628]
[1734952519866,2.99233,3341.9,3341.5,0.6628]
[1734952520423,2.99213,3342.1,3341.5,0.6628]
[1734952520763,5.99174,3342.6,3341.5,0.6628]
[1734952520764,0.764,3342.6,3341.5,0.6628]
[1734952521068,2.99195,3342.4,3341.5,0.6628]
[1734952521812,3.10753017,3342.7,3341.7,0.6628]
[1734952522031,3.10753017,3342.7,3341.6,5.19855058]
[1734952522032,3.10753017,3342.7,3341.8,1.13613506]
[1734952522211,0.8102,3343.2,3342.0,0.55]
[1734952522212,2.99143,3342.9,3342.0,0.55]
[1734952523143,3.10753017,3343.1,3342.0,0.55]
[1734952523437,2.99125,3343.1,3342.2,0.6628]
[1734952523779,3.91773017,3343.7,3342.6,2.99163]
[1734952524138,3.91773017,3343.7,3342.3,3.57182631]
[1734952524139,3.10753017,3343.9,3342.7,1.028243]
[1734952524303,3.10753017,3343.9,3342.7,0.6628]
[1734952524304,2.99115,3343.2,3342.7,0.6628]
[1734952524882,2.99125,3343.1,3342.7,0.6628]
[1734952525150,0.7705,3343.4,3342.3,0.55]
[1734952525151,2.99186,3342.4,3342.3,0.6628]
[1734952525296,2.9916,3342.7,3342.0,1.89951993]
[1734952525645,2.99204,3342.2,3342.0,1.89951993]
[1734952525821,2.99188,3342.4,3342.0,1.89951993]
[1734952526223,0.7705,3342.8,3342.0,1.89951993]
[1734952526386,0.7705,3342.8,3342.0,1.34421748]
[1734952526586,2.99172,3342.6,3342.0,0.6628]
[1734952527306,0.7705,3342.8,3342.0,0.6628]
[1734952529020,2.992,3342.3,3342.0,0.6628]
[1734952529391,2.992,3342.3,3341.4,1.2128]
[1734952529590,2.992,3342.3,3341.6,0.55]
[1734952529812,2.992,3342.3,3341.7,0.18131733]
[1734952530019,2.992,3342.3,3341.7,0.23169065]
[1734952531620,2.99185,3342.5,3341.7,0.23169065]
[1734952532010,2.99189,3342.4,3341.7,0.23169065]
[1734952532426,2.99189,3342.4,3341.7,0.28939143]
[1734952532686,3.7705,3342.8,3341.7,0.28939143]
[1734952532687,3.0,3342.6,3341.7,0.28939143]
[1734952532892,0.7657,3343.2,3341.8,0.69272143]
[1734952533108,3.10753017,3343.3,3342.0,0.6628]
[1734952533311,3.10753017,3343.3,3342.2,0.6628]
[1734952533522,2.99127,3343.1,3342.2,0.6628]
[1734952533687,3.10753017,3343.3,3342.2,0.6628]
[1734952533891,3.79394619,3343.3,3342.3,0.10807411]
[1734952534125,2.99133,3343.0,3342.3,0.10807411]
[1734952534340,2.99133,3343.0,3342.2,0.6628]
[1734952534501,2.99133,3343.0,3342.4,0.10807411]
[1734952534830,3.0,3343.3,3342.2,0.6628]
[1734952535036,0.7657,3343.5,3342.2,0.6628]
[1734952535243,1.14227,3343.5,3342.3,0.10807411]
[1734952535549,2.99132,3343.0,3342.3,0.10807411]
[1734952535892,1.14227,3343.5,3342.3,0.10807411]
[1734952535893,2.99144,3342.9,3342.3,0.10807411]
[1734952536103,2.99146,3342.9,3342.3,0.10807411]
[1734952537264,1.14227,3343.5,3342.3,0.10807411]
[1734952537570,2.99131,3343.1,3342.3,0.30051846]
[1734952538101,2.99132,3343.0,3342.3,0.30051846]
[1734952539055,3.0,3343.4,3342.3,0.30051846]
[1734952539259,3.93683017,3343.8,3342.6,0.6628]
[1734952539469,3.93683017,3343.8,3342.7,0.55]
[1734952539470,2.99072,3343.7,3342.7,0.55]
[1734952539621,2.99072,3343.7,3342.8,1.016973]
[1734952539823,2.99072,3343.7,3342.8,0.6628]
[1734952540167,3.10753017,3343.8,3343.0,0.6628]
[1734952540661,2.99045,3344.0,3343.1,0.1082122]
[1734952541209,2.99061,3343.8,3343.1,0.1082122]
[1734952542712,3.0,3344.1,3343.1,0.1082122]
[1734952543063,2.99098,3343.4,3343.1,0.1082122]
[1734952543760,2.99114,3343.2,3343.1,0.1082122]
[1734952544260,2.99142,3342.9,3342.6,0.6628]
[1734952544623,2.99142,3342.9,3342.7,0.10799524]
[1734952545264,2.99142,3342.9,3342.6,0.6628]
[1734952545762,2.99142,3342.9,3342.7,0.10813987]
[1734952546266,2.99151,3342.8,3342.6,0.6628]
[1734952546547,2.99151,3342.8,3342.0,0.55]
[1734952546850,2.99151,3342.8,3341.9,0.55]
[1734952547011,2.99151,3342.8,3342.1,0.10815302]
[1734952547214,3.0,3343.1,3342.1,0.10815302]
[1734952547557,0.8229,3342.7,3342.1,0.10815302]
[1734952547761,2.99193,3342.4,3342.1,0.10815302]
[1734952547969,0.8229,3342.7,3341.8,0.6628]
[1734952548168,2.99205,3342.2,3341.8,1.80990275]
[1734952548667,0.8229,3342.7,3341.8,1.80990275]
[1734952548864,2.99216,3342.1,3341.8,0.6628]
[1734952549167,3.8229,3342.7,3341.3,1.23671993]
[1734952549168,0.8229,3342.7,3341.4,0.6628]
[1734952549350,3.8229,3342.7,3341.4,0.6628]
[1734952549554,2.99232,3341.9,3341.4,0.6628]
[1734952550373,3.0,3342.2,3341.4,0.6628]
[1734952550571,2.99273,3341.5,3340.9,0.6628]
[1734952550736,2.99267,3341.5,3340.9,0.6628]
[1734952552860,0.7925,3342.1,3340.9,0.6628]
[1734952552861,2.99256,3341.7,3340.9,0.6628]
[1734952553060,3.78465,3342.1,3341.0,0.55]
[1734952553221,2.99197,3342.3,3341.2,0.55]
[1734952553550,0.7925,3342.5,3341.4,0.6628]
[1734952553551,2.99216,3342.1,3341.4,0.6628]
[1734952554561,2.99196,3342.3,3341.4,0.6628]
[1734952555337,0.7742,3342.8,3341.5,0.10528367]
[1734952555539,2.99208,3342.2,3341.5,0.10528367]
[1734952555943,3.0,3342.6,3341.5,0.10528367]
[1734952556140,2.99222,3342.0,3341.5,0.10528367]
[1734952556571,3.668349,3342.5,3341.5,0.10528367]
[1734952556773,2.9925,3341.7,3341.5,0.10528367]
[1734952556935,2.99186,3342.4,3341.5,0.10528367]
[1734952557139,2.9922,3342.1,3341.5,0.10528367]
[1734952557344,2.99226,3342.0,3341.5,0.10528367]
[1734952557739,2.99232,3341.9,3341.5,0.10528367]
[1734952560389,2.99241,3341.8,3341.5,0.10528367]
[1734952560943,2.99223,3342.0,3341.5,0.10528367]
[1734952561878,2.99257,3341.6,3341.5,0.10528367]
[1734952562285,2.99281,3341.4,3341.1,0.6628]
[1734952562815,2.99291,3341.3,3340.8,0.6628]
[1734952563597,2.99297,3341.2,3340.8,0.6628]
[1734952565356,0.7932,3341.5,3340.3,0.6628]
[1734952565560,3.0,3341.1,3340.3,0.6628]
[1734952565855,2.99363,3340.5,3339.9,2.5070191]
[1734952566622,0.7735,3341.0,3339.9,0.6628]
[1734952566623,2.99374,3340.4,3339.9,0.6628]
[1734952566910,2.99401,3340.0,3339.6,1.89951993]
[1734952567468,2.99368,3340.4,3339.6,1.89951993]
[1734952567668,2.99368,3340.4,3339.6,0.6628]
[1734952568069,2.99383,3340.2,3339.6,0.6628]
[1734952570717,2.99366,3340.4,3339.6,0.6628]
[1734952570923,6.77706,3340.7,3339.6,0.6628]
[1734952571221,0.8081,3340.9,3339.7,0.55]
[1734952571420,2.99366,3340.4,3339.7,0.55]
[1734952571582,0.380118,3340.8,3339.6,0.6628]
[1734952571782,0.7773,3340.7,3339.6,0.6628]
[1734952571981,2.99399,3340.1,3339.4,0.59485168]
[1734952572531,0.7773,3340.7,3339.4,0.59485168]
[1734952572670,2.99385,3340.2,3339.3,0.6628]
[1734952573169,2.99385,3340.2,3339.3,1.028569]
[1734952573377,2.99385,3340.2,3339.3,0.6628]
[1734952574002,2.99356,3340.5,3339.3,0.6628]
[1734952574210,3.0,3340.5,3339.3,0.6628]
[1734952574414,2.99412,3339.9,3339.3,0.6628]
[1734952574882,0.7916,3340.1,3339.3,0.6628]
[1734952575083,2.9943,3339.7,3339.3,0.6628]
[1734952575385,2.9943,3339.7,3338.7,8.98]
[1734952575386,0.7916,3340.1,3338.8,1.2128]
[1734952575581,2.99456,3339.4,3338.8,0.6628]
[1734952575783,2.99466,3339.3,3338.8,0.6628]
[1734952576203,2.99464,3339.3,3338.6,0.1711951]
[1734952576589,2.99464,3339.3,3338.7,0.10444772]
[1734952577783,2.99454,3339.5,3338.7,0.10444772]
[1734952577976,2.99435,3339.7,3338.7,0.10444772]
[1734952578182,2.99478,3339.2,3338.7,0.10444772]
[1734952578377,2.99481,3339.1,3338.7,0.10444772]
[1734952578637,0.676805,3339.7,3338.7,0.10444772]
[1734952578638,2.99437,3339.6,3338.7,0.10444772]
[1734952578832,2.99475,3339.2,3338.6,0.1711951]
[1734952579037,3.0,3339.5,3338.7,0.10444772]
[1734952579334,3.0,3339.5,3338.6,0.1711951]
[1734952579486,2.99441,3339.6,3338.7,0.6628]
[1734952579681,0.8049,3340.3,3338.9,0.6628]
[1734952580001,2.99372,3340.4,3339.3,0.6628]
[1734952580350,2.99394,3340.1,3339.4,0.10444772]
[1734952580642,2.99365,3340.4,3339.5,0.6628]
[1734952580942,0.8049,3340.7,3339.5,0.6628]
[1734952580943,2.99349,3340.6,3339.5,0.6628]
[1734952581239,2.99349,3340.6,3339.6,1.13299072]
[1734952581533,2.99349,3340.6,3339.6,0.76724772]
[1734952582536,2.99356,3340.5,3339.6,0.76724772]
[1734952583785,3.0,3340.9,3339.6,0.76724772]
[1734952583986,2.99374,3340.3,3339.6,0.76724772]
[1734952585087,3.0,3340.6,3339.6,0.76724772]
[1734952585286,2.99384,3340.2,3339.6,0.76724772]
[1734952586566,2.99399,3340.1,3339.6,0.76724772]
[1734952587214,2.99396,3340.1,3339.6,0.76724772]
[1734952587420,2.99408,3340.0,3339.6,0.76724772]
[1734952588168,2.99382,3340.3,3339.6,0.76724772]
[1734952588370,2.99386,3340.2,3339.6,0.76724772]
[1734952588522,3.0,3340.4,3339.6,0.76724772]
[1734952588523,0.4707844,3340.4,3339.6,0.76724772]
[1734952588922,2.99394,3340.1,3339.6,0.76724772]
[1734952589869,2.99418,3339.9,3339.6,0.76724772]
[1734952590937,0.4707844,3340.4,3339.6,0.76724772]
[1734952591140,0.8081,3340.2,3339.6,0.10444772]
[1734952591521,2.99435,3339.7,3339.3,0.6628]
[1734952591723,0.8081,3340.2,3339.3,0.6628]
[1734952591924,2.99413,3339.9,3339.3,0.6628]
[1734952592122,2.99427,3339.8,3339.3,0.6628]
[1734952592738,3.0,3340.1,3339.3,0.6628]
[1734952592739,2.99403,3340.0,3339.3,0.6628]
[1734952592973,2.99391,3340.2,3339.3,0.6628]
[1734952593180,3.0,3340.4,3339.3,0.6628]
[1734952593418,2.99427,3339.8,3339.4,0.10471115]
[1734952593780,2.99374,3340.3,3339.3,0.6628]
[1734952594107,2.994,3340.1,3339.4,0.10471115]
[1734952594617,2.99376,3340.3,3339.4,0.10471115]
[1734952594908,2.99376,3340.3,3339.5,1.2128]
[1734952595111,2.99376,3340.3,3339.5,1.31751115]
[1734952595978,2.99304,3341.1,3339.9,3.5441]
[1734952596308,2.99304,3341.1,3339.5,5.28083953]
[1734952596309,2.99294,3341.2,3340.3,0.6628]
[1734952596660,2.99294,3341.2,3340.4,0.13494112]
[1734952596855,2.99275,3341.5,3340.5,0.6628]
[1734952597072,3.10753017,3341.8,3340.5,0.6628]
[1734952597292,2.9928,3341.4,3340.6,0.02993175]
[1734952597500,2.9928,3341.4,3340.6,0.10500759]
[1734952598891,3.0,3341.7,3340.6,0.10500759]
[1734952599238,0.3801,3341.7,3340.6,0.10500759]
[1734952599421,0.801,3341.9,3340.6,0.10500759]
[1734952599727,3.0,3341.7,3340.6,0.10500759]
[1734952599902,2.99302,3341.2,3340.6,0.10500759]
[1734952600832,3.0,3341.9,3340.7,1.2128]
[1734952600974,2.99228,3342.0,3341.0,0.55]
[1734952601178,2.99181,3342.5,3341.2,1.2128]
[1734952601399,2.99198,3342.3,3341.3,0.6628]
[1734952601687,2.99198,3342.3,3341.3,0.79715928]
[1734952602190,2.99212,3342.2,3341.3,0.76723468]
[1734952602391,2.99231,3341.9,3341.3,0.76723468]
[1734952602586,0.8206,3342.6,3341.3,0.76723468]
[1734952602787,2.99247,3341.8,3341.3,0.76723468]
[1734952603327,2.99247,3341.8,3341.3,0.6628]
[1734952603888,2.99209,3342.2,3341.3,0.6628]
[1734952604095,2.99219,3342.1,3341.4,0.10413847]
[1734952604479,0.38206,3342.5,3341.4,0.10413847]
[1734952605116,2.99186,3342.4,3341.4,0.10413847]
[1734952605316,0.38206,3342.5,3341.4,0.10413847]
[1734952605317,3.411402,3342.3,3341.4,0.10413847]
[1734952605500,2.99241,3341.8,3341.4,0.10413847]
[1734952606393,2.99249,3341.7,3341.4,0.10413847]
[1734952606817,2.99233,3341.9,3341.3,0.6628]
[1734952607116,2.99233,3341.9,3341.4,0.10297298]
[1734952607504,2.99233,3341.9,3341.3,0.6628]
[1734952608029,2.99215,3342.1,3341.4,0.10297298]
[1734952608248,2.99179,3342.5,3341.5,0.6628]
[1734952608389,3.373029,3342.5,3341.5,0.69272541]
[1734952608594,0.825,3342.9,3341.5,0.6628]
[1734952608845,0.825,3342.9,3341.6,0.10294665]
[1734952609158,2.99203,3342.3,3341.6,0.10294665]
[1734952609294,2.99208,3342.2,3341.6,0.10294665]
[1734952609719,2.9922,3342.1,3341.6,0.10294665]
[1734952609911,1.12422,3342.1,3341.6,0.10294665]
[1734952610200,2.99248,3341.7,3341.6,0.10294665]
[1734952610409,2.99284,3341.3,3341.2,0.6628]
[1734952610850,2.99284,3341.3,3341.2,0.75864578]
[1734952611550,2.99239,3341.9,3341.2,0.75864578]
[1734952611880,0.299239,3341.9,3341.2,0.75864578]
[1734952612148,2.99256,3341.7,3341.2,0.75864578]
[1734952612299,2.99256,3341.7,3341.2,0.6628]
[1734952612499,2.99256,3341.7,3341.3,0.09298793]
[1734952613055,2.99256,3341.7,3341.2,0.6628]
[1734952613199,2.99256,3341.7,3341.4,0.09309967]
[1734952613546,2.99256,3341.7,3341.5,0.09309967]
[1734952613751,2.99233,3341.9,3341.2,0.6628]
[1734952613900,0.7644,3342.4,3341.6,0.09297479]
[1734952614100,2.99248,3341.7,3341.2,0.6628]
[1734952614549,2.99248,3341.7,3341.3,0.09297479]
[1734952614849,2.99248,3341.7,3341.2,0.6628]
[1734952615149,2.99248,3341.7,3341.3,0.09296822]
[1734952615754,2.99248,3341.7,3341.2,0.6628]
[1734952615954,2.99248,3341.7,3341.4,0.09296822]
[1734952616103,2.99248,3341.7,3341.2,0.6628]
[1734952616305,2.99248,3341.7,3341.5,0.09296822]
[1734952616505,2.99248,3341.7,3341.2,0.6628]
[1734952617149,2.99248,3341.7,3341.3,0.09296822]
[1734952617356,2.99248,3341.7,3341.2,0.6628]
[1734952617648,2.99248,3341.7,3341.4,0.09296822]
[1734952617851,2.99233,3341.9,3341.2,0.6628]
[1734952618354,2.99233,3341.9,3341.3,0.09296822]
[1734952619056,3.0,3342.1,3341.3,0.09296822]
[1734952619348,2.99201,3342.3,3341.4,0.55]
[1734952619558,2.99201,3342.3,3341.5,0.69272266]
[1734952619758,2.99201,3342.3,3341.5,0.78569088]
[1734952620260,2.99201,3342.3,3341.5,0.75576822]
[1734952620464,2.9918,3342.5,3341.5,0.75576822]
[1734952620606,2.9918,3342.5,3341.7,0.6628]
[1734952620812,3.76867,3343.0,3341.7,0.6628]
[1734952620813,3.0,3342.6,3341.7,0.6628]
[1734952621023,2.99169,3342.6,3341.8,0.09275792]
[1734952621314,2.99207,3342.2,3341.8,0.09275792]
[1734952621547,2.99207,3342.2,3341.7,0.6628]
[1734952621548,2.99214,3342.1,3341.7,0.6628]
[1734952622072,2.99214,3342.1,3341.8,0.09275792]
[1734952622282,2.9923,3341.9,3341.8,0.09275792]
[1734952622566,2.99278,3341.4,3341.0,0.6628]
[1734952622712,2.99257,3341.7,3341.0,0.6628]
[1734952623057,2.99257,3341.7,3341.1,0.09205481]
[1734952623257,3.8252,3342.1,3341.1,0.09205481]
[1734952623459,2.99268,3341.5,3341.1,0.09205481]
[1734952623807,3.38252,3342.0,3341.0,0.6628]
[1734952624036,2.99261,3341.6,3341.0,0.6628]
[1734952624312,2.99261,3341.6,3341.1,0.09205481]
[1734952624858,2.99243,3341.8,3341.0,0.6628]